fUSD/lending_fUSD_20260429
["ID","MTS","AMOUNT","RATE_DAILY","PERIOD"]
[421313957,1777407042110,-1475.169328,0.0001139,2]
[421313958,1777407042120,-1594.126078,0.0001139,2]
[421313959,1777407042129,-1594.126078,0.0001139,2]
[421313960,1777407042139,-1594.126078,0.0001139,2]
[421313961,1777407042149,-1594.126078,0.0001139,2]
[421313962,1777407042159,-151.0,0.0001139,2]
[421313963,1777407042168,-151.0,0.0001139,2]
[421313964,1777407042178,-151.0,0.0001139,2]
[421313965,1777407042188,-151.0,0.0001139,2]
[421313966,1777407042197,-157.830296,0.0001139,2]
[421313967,1777407042510,-151.0,0.0001139,2]
[421313968,1777407042521,-151.0,0.0001139,2]
[421313969,1777407042532,-151.0,0.0001139,2]
[421313970,1777407042541,-1958.77540671,0.00011466,2]
[421313971,1777407042551,-2618.34391484,0.00011466,2]
[421313972,1777407042561,-1680.0,0.00011534,2]
[421313973,1777407042570,-150.0,0.00011556,2]
[421313974,1777407042580,-107271.52061699,0.0001157,2]
[421313975,1777407042589,-11131.91142073,0.0001157,2]
[421313976,1777407042599,-151.0,0.0001157,2]
[421313977,1777407042609,-585.0,0.0001157,2]
[421313978,1777407042619,-585.0,0.0001157,2]
[421313979,1777407042628,-585.0,0.0001157,2]
[421313980,1777407042638,-585.0,0.0001157,2]
[421313981,1777407042647,-189.154234,0.0001157,2]
[421313982,1777407042658,-189.154234,0.0001157,2]
[421313983,1777407042667,-189.154234,0.0001157,2]
[421313984,1777407042676,-189.154234,0.0001157,2]
[421313985,1777407042686,-1475.169328,0.0001157,2]
[421313986,1777407042696,-1475.169328,0.0001157,2]
[421313987,1777407042705,-1475.169328,0.0001157,2]
[421313988,1777407042715,-1475.169328,0.0001157,2]
[421313989,1777407042724,-1594.126078,0.0001157,2]
[421313990,1777407042733,-1594.126078,0.0001157,2]
[421313991,1777407042742,-1594.126078,0.0001157,2]
[421313992,1777407042753,-1594.126078,0.0001157,2]
[421313993,1777407042762,-151.0,0.0001157,2]
[421313994,1777407042772,-151.0,0.0001157,2]
[421313995,1777407042781,-151.0,0.0001157,2]
[421313996,1777407042790,-151.0,0.0001157,2]
[421313997,1777407042799,-151.0,0.0001157,2]
[421313998,1777407042809,-151.0,0.0001157,2]
[421313999,1777407042818,-287.27336,0.0001157,2]
[421314000,1777407042827,-350.0,0.00011611,2]
[421314001,1777407042837,-1958.77540671,0.00011611,2]
[421314002,1777407042846,-2618.34391484,0.00011611,2]
[421314003,1777407042856,-255.0,0.00011627,2]
[421314004,1777407042865,-420.0,0.00011652,2]
[421314005,1777407042874,-200.0,0.00011685,2]
[421314006,1777407042884,-200.0,0.00011685,2]
[421314007,1777407042893,-161.0,0.0001169,2]
[421314008,1777407042902,-1958.77540671,0.00011755,2]
[421314009,1777407042912,-2618.34391484,0.00011755,2]
[421314010,1777407042921,-200.0,0.0001179,2]
[421314011,1777407042930,-200.0,0.00011802,2]
[421314012,1777407042940,-200.0,0.00011802,2]
[421314013,1777407042949,-251.07,0.000119,2]
[421314014,1777407042959,-977.7331,0.000119,2]
[421314015,1777407042968,-164.25919623,0.000119,2]
[421314016,1777407042977,-1958.77540671,0.000119,2]
[421314017,1777407042986,-2618.34391484,0.000119,2]
[421314018,1777407042996,-6437.83771768,0.000119,2]
[421314019,1777407043006,-704.90686448,0.000119,2]
[421314020,1777407043015,-29223.54787527,0.000119,2]
[421314021,1777407043025,-200.0,0.0001192,2]
[421314022,1777407043034,-200.0,0.0001192,2]
[421314024,1777407043044,-151.0,0.00011997,2]
[421314026,1777407043053,-300.0,0.00011999,2]
[421314028,1777407043063,-666.0,0.00011999,2]
[421314030,1777407043072,-1000.0,0.00011999,2]
[421314032,1777407043081,-1000.0,0.00011999,2]
[421314035,1777407043091,-1000.0,0.00011999,2]
[421314037,1777407043101,-535.03256859,0.00011999,2]
[421314040,1777407043111,-155.362,0.00011999,2]
[421314043,1777407043120,-1416113.45828489,0.00012,2]
[421314046,1777407043136,-1323.12656741,0.00012,2]
[421314048,1777407043147,-14637.31840052,0.00012,2]
[421314052,1777407043725,-151.0,0.00011556,2]
[421314053,1777407043736,-151.0,0.0001157,2]
[421314054,1777407043746,-306.0,0.00012,2]
[421314081,1777407047122,-500.0,0.00010698,2]
[421314082,1777407047138,-500.0,0.00010698,2]
[421314083,1777407047150,-500.0,0.00010698,2]
[421314084,1777407047164,-500.0,0.00010698,2]
[421314085,1777407047177,-500.0,0.00010698,2]
[421314086,1777407047191,-500.0,0.00010698,2]
[421314087,1777407047202,-500.0,0.00010698,2]
[421314088,1777407047214,-500.0,0.00010698,2]
[421314089,1777407047225,-15.11574877,0.00010698,2]
[421314090,1777407047270,-484.88425123,0.00010698,2]
[421314091,1777407047282,-500.0,0.00010698,2]
[421314092,1777407047293,-500.0,0.00010698,2]
[421314093,1777407047303,-500.0,0.00010698,2]
[421314094,1777407047313,-500.0,0.00010698,2]
[421314095,1777407047323,-500.0,0.00010698,2]
[421314096,1777407047333,-500.0,0.00010698,2]
[421314097,1777407047343,-500.0,0.00010698,2]
[421314098,1777407047353,-500.0,0.00010698,2]
[421314099,1777407047363,-500.0,0.00010698,2]
[421314100,1777407047373,-500.0,0.00010698,2]
[421314101,1777407047383,-500.0,0.00010698,2]
[421314102,1777407047393,-500.0,0.00010698,2]
[421314104,1777407047402,-500.0,0.00010698,2]
[421314105,1777407047413,-174.71124838,0.00010698,2]
[421314129,1777408231442,-280.0,8.219e-05,2]
[421314130,1777408231453,-250.0,8.322e-05,2]
[421314131,1777408231462,-1363.85243081,8.425e-05,2]
[421314132,1777408231471,-300.0,9.038e-05,2]
[421314133,1777408231483,-1200.0,9.039e-05,2]
[421314134,1777408231492,-300.0,9.039e-05,2]
[421314135,1777408231502,-300.0,9.039e-05,2]
[421314136,1777408231511,-1200.0,9.039e-05,2]
[421314137,1777408231520,-194.00072509,9.04e-05,2]
[421314138,1777408231530,-150.0,9.04e-05,2]
[421314139,1777408231538,-185.71653242,9.041e-05,2]
[421314140,1777408231548,-5000.0,9.041e-05,2]
[421314141,1777408231557,-250.0,9.041e-05,2]
[421314142,1777408231566,-5000.0,9.041e-05,2]
[421314143,1777408231576,-500.0,9.041e-05,2]
[421314144,1777408231585,-250.0,9.041e-05,2]
[421314145,1777408231594,-384.22620767,9.041e-05,2]
[421314146,1777408231604,-475.39034168,9.041e-05,2]
[421314147,1777408231613,-150.0,9.518e-05,2]
[421314148,1777408231622,-150.0,9.518e-05,2]
[421314149,1777408231632,-150.0,9.518e-05,2]
[421314150,1777408231642,-150.0,9.729e-05,2]
[421314151,1777408231651,-150.0,9.941e-05,2]
[421314152,1777408231660,-196.0,9.943e-05,2]
[421314153,1777408231669,-300.0,9.943e-05,2]
[421314154,1777408231679,-300.0,9.943e-05,2]
[421314155,1777408231688,-1680.0,9.943e-05,2]
[421314156,1777408231697,-238.0,9.944e-05,2]
[421314157,1777408231706,-150.0,0.00010152,2]
[421314158,1777408231715,-500.0,0.00010274,2]
[421314159,1777408231724,-150.0,0.00010364,2]
[421314160,1777408231734,-2388.129,0.00010387,2]
[421314161,1777408231743,-193.303,0.00010387,2]
[421314162,1777408231752,-338.94971406,0.000104,2]
[421314163,1777408231761,-643.86217382,0.000104,2]
[421314164,1777408231770,-705.58040967,0.000104,2]
[421314165,1777408231779,-157.2793398,0.000104,2]
[421314166,1777408231788,-6717.18,0.00010475,2]
[421314167,1777408231798,-124635.6482,0.00010498,2]
[421314168,1777408231808,-435.0106,0.00010499,2]
[421314169,1777408231817,-1469.7316,0.00010499,2]
[421314170,1777408231826,-1313.7831,0.00010499,2]
[421314171,1777408231835,-200.17425661,0.00010573,2]
[421314172,1777408231844,-150.0,0.00010575,2]
[421314173,1777408231854,-250.0,0.00010598,2]
[421314174,1777408231863,-500.0,0.00010598,2]
[421314175,1777408231872,-500.0,0.00010598,2]
[421314176,1777408231881,-500.0,0.00010598,2]
[421314177,1777408231890,-500.0,0.00010598,2]
[421314178,1777408231899,-500.0,0.00010598,2]
[421314179,1777408231908,-500.0,0.00010598,2]
[421314180,1777408231917,-500.0,0.00010598,2]
[421314181,1777408231927,-500.0,0.00010598,2]
[421314182,1777408231936,-500.0,0.00010598,2]
[421314183,1777408231945,-500.0,0.00010598,2]
[421314184,1777408231955,-500.0,0.00010598,2]
[421314185,1777408231963,-500.0,0.00010598,2]
[421314186,1777408231973,-500.0,0.00010598,2]
[421314187,1777408231983,-500.0,0.00010598,2]
[421314188,1777408231993,-500.0,0.00010598,2]
[421314190,1777408232003,-500.0,0.00010598,2]
[421314191,1777408232012,-513.09698192,0.00010598,2]
[421314192,1777408232022,-500.0,0.00010598,2]
[421314193,1777408232032,-500.0,0.00010598,2]
[421314194,1777408232041,-500.0,0.00010598,2]
[421314195,1777408232050,-500.0,0.00010598,2]
[421314196,1777408232060,-287.0666507,0.00010598,2]
[421314197,1777408232069,-500.0,0.00010598,2]
[421314198,1777408232078,-500.0,0.00010598,2]
[421314199,1777408232087,-500.0,0.00010598,2]
[421314200,1777408232096,-500.0,0.00010598,2]
[421314201,1777408232105,-500.0,0.00010598,2]
[421314202,1777408232114,-500.0,0.00010598,2]
[421314203,1777408232123,-500.0,0.00010598,2]
[421314204,1777408232132,-500.0,0.00010598,2]
[421314205,1777408232141,-500.0,0.00010598,2]
[421314206,1777408232150,-500.0,0.00010598,2]
[421314207,1777408232160,-500.0,0.00010598,2]
[421314208,1777408232169,-500.0,0.00010598,2]
[421314209,1777408232178,-500.0,0.00010598,2]
[421314210,1777408232187,-500.0,0.00010598,2]
[421314211,1777408232197,-500.0,0.00010598,2]
[421314212,1777408232207,-500.0,0.00010598,2]
[421314213,1777408232216,-500.0,0.00010598,2]
[421314214,1777408232226,-393.63594965,0.00010598,2]
[421314215,1777408232235,-500.0,0.00010598,2]
[421314216,1777408232244,-488.55,0.00010598,2]
[421314217,1777408232253,-2000.0,0.00010599,2]
[421314218,1777408232262,-181766.54963251,0.00010599,2]
[421314219,1777408232549,-113063.77357728,0.00010599,2]
[421314223,1777408237695,-414057.12691008,0.00010599,2]
[421314224,1777408237806,-2149.54225841,0.00010599,2]
[421314225,1777408237863,-2050.45774159,0.00010599,2]
[421314261,1777408244698,-291641.7910985,0.00010599,2]
[421314288,1777408245668,-93306.0,0.00010599,2]
[421314289,1777408246163,-2392.81052465,0.00010599,2]
[421314290,1777408246221,-3000.00000576,0.00010599,2]
[421314325,1777409431814,-280.0,8.219e-05,2]
[421314326,1777409431825,-204.5,8.63e-05,2]
[421314327,1777409431868,-104.24,8.63e-05,2]
[421314328,1777409431877,-250.0,9.041e-05,2]
[421314329,1777409431887,-25.76,9.041e-05,2]
[421314330,1777409431899,-224.24,9.041e-05,2]
[421314331,1777409431909,-221.01476603,9.26e-05,2]
[421314332,1777409431924,-278.98523397,9.26e-05,2]
[421314333,1777409431934,-300.0,9.446e-05,2]
[421314334,1777409431943,-300.0,9.448e-05,2]
[421314335,1777409431953,-1200.0,9.448e-05,2]
[421314336,1777409431964,-40910.36776601,9.449e-05,2]
[421314337,1777409431973,-302234.10736241,0.000101,2]
[421314338,1777409431985,-52611.3687997,0.000101,2]
[421314339,1777409431996,-229604.94783184,0.000101,2]
[421314340,1777409432009,-34473.6598546,0.000101,2]
[421314341,1777409432020,-1254.41808677,0.000101,2]
[421314373,1777409437916,-3123.75116919,0.000101,2]
[421314374,1777409438021,-72717.99609611,0.000101,2]
[421314410,1777409442762,-502.28045503,0.000101,2]
[421314458,1777410631901,-469.8435,8.119e-05,2]
[421314459,1777410631912,-280.0,8.219e-05,2]
[421314460,1777410631923,-372.667373,8.886e-05,2]
[421314461,1777410631933,-207.40137916,8.931e-05,2]
[421314462,1777410631943,-75.22278296,8.931e-05,2]
[421314463,1777410631955,-174.77721704,8.931e-05,2]
[421314464,1777410631964,-725.32773107,9.037e-05,2]
[421314465,1777410631976,-474.67226893,9.037e-05,2]
[421314466,1777410631986,-300.0,9.038e-05,2]
[421314467,1777410631996,-21856.92598608,9.04e-05,2]
[421314468,1777410632006,-500.0,9.205e-05,2]
[421314469,1777410632016,-7462.56592804,9.4e-05,5]
[421314470,1777410632026,-200.0,9.5e-05,2]
[421314471,1777410632036,-204.88,9.561e-05,2]
[421314472,1777410632052,-150.0,9.777e-05,2]
[421314473,1777410632062,-150.0,9.777e-05,2]
[421314474,1777410632072,-150.0,9.777e-05,2]
[421314475,1777410632083,-150.0,9.777e-05,2]
[421314476,1777410632092,-222.35010651,9.777e-05,2]
[421314477,1777410632102,-150.0,9.823e-05,2]
[421314479,1777410632112,-150.0,9.823e-05,2]
[421314481,1777410632121,-150.0,9.823e-05,2]
[421314482,1777410632131,-150.0,9.823e-05,2]
[421314483,1777410632141,-170.49964996,9.823e-05,2]
[421314484,1777410632151,-265.14027138,9.823e-05,2]
[421314485,1777410632160,-150.0,9.825e-05,2]
[421314486,1777410632170,-500.0,9.826e-05,2]
[421314487,1777410632181,-500.0,9.826e-05,2]
[421314488,1777410632191,-500.0,9.826e-05,2]
[421314489,1777410632200,-500.0,9.826e-05,2]
[421314490,1777410632210,-500.0,9.826e-05,2]
[421314491,1777410632220,-500.0,9.826e-05,2]
[421314492,1777410632230,-500.0,9.826e-05,2]
[421314513,1777410632610,-500.0,9.826e-05,2]
[421314514,1777410632621,-500.0,9.826e-05,2]
[421314515,1777410632630,-500.0,9.826e-05,2]
[421314516,1777410632641,-500.0,9.826e-05,2]
[421314517,1777410632650,-447.58842795,9.826e-05,2]
[421314518,1777410632660,-500.0,9.826e-05,2]
[421314519,1777410632669,-500.0,9.826e-05,2]
[421314520,1777410632679,-500.0,9.826e-05,2]
[421314521,1777410632688,-500.0,9.826e-05,2]
[421314522,1777410632698,-151.53031816,9.826e-05,2]
[421314523,1777410632707,-500.0,9.826e-05,2]
[421314524,1777410632716,-500.0,9.826e-05,2]
[421314525,1777410632731,-500.0,9.826e-05,2]
[421314526,1777410632741,-500.0,9.826e-05,2]
[421314527,1777410632750,-500.0,9.826e-05,2]
[421314528,1777410632760,-217.42189229,9.826e-05,2]
[421314529,1777410632770,-500.0,9.826e-05,2]
[421314530,1777410632780,-500.0,9.826e-05,2]
[421314531,1777410632789,-500.0,9.826e-05,2]
[421314532,1777410632799,-150.0,9.826e-05,2]
[421314533,1777410632808,-258.642693,9.826e-05,2]
[421314534,1777410632818,-150.0,9.826e-05,2]
[421314535,1777410632828,-261.0066596,9.826e-05,2]
[421314536,1777410632837,-150.0,9.826e-05,2]
[421314537,1777410632846,-150.0,9.826e-05,2]
[421314538,1777410632855,-150.0,9.826e-05,2]
[421314539,1777410632864,-150.0,9.826e-05,2]
[421314540,1777410632874,-150.0,9.826e-05,2]
[421314541,1777410632883,-250.0,9.826e-05,2]
[421314542,1777410632893,-150.0,9.826e-05,2]
[421314543,1777410632902,-150.0,9.826e-05,2]
[421314544,1777410632911,-150.0,9.826e-05,2]
[421314545,1777410632920,-150.0,9.826e-05,2]
[421314546,1777410632929,-150.0,9.826e-05,2]
[421314547,1777410632938,-250.0,9.826e-05,2]
[421314548,1777410632948,-500.0,9.826e-05,2]
[421314549,1777410632958,-6786.3412,9.851e-05,2]
[421314550,1777410632967,-1680.0,9.941e-05,2]
[421314551,1777410632977,-821.08485711,9.95e-05,2]
[421314552,1777410632986,-821.08485711,9.95e-05,2]
[421314553,1777410632996,-821.08485711,9.95e-05,2]
[421314554,1777410633006,-821.08485711,9.95e-05,2]
[421314555,1777410633015,-821.08485711,9.95e-05,2]
[421314556,1777410633024,-821.08485711,9.95e-05,2]
[421314557,1777410633033,-821.08485711,9.95e-05,2]
[421314558,1777410633042,-821.08485711,9.95e-05,2]
[421314559,1777410633052,-821.08485711,9.95e-05,2]
[421314560,1777410633061,-821.08485711,9.95e-05,2]
[421314561,1777410633070,-821.08485711,9.95e-05,2]
[421314562,1777410633082,-821.08485711,9.95e-05,2]
[421314563,1777410633092,-821.08485711,9.95e-05,2]
[421314564,1777410633101,-821.08485711,9.95e-05,2]
[421314565,1777410633111,-821.08485711,9.95e-05,2]
[421314566,1777410633120,-821.08485711,9.95e-05,2]
[421314567,1777410633134,-821.08485711,9.95e-05,2]
[421314568,1777410633143,-821.08485711,9.95e-05,2]
[421314569,1777410633153,-821.08485711,9.95e-05,2]
[421314570,1777410633162,-821.08485711,9.95e-05,2]
[421314571,1777410633171,-821.08485711,9.95e-05,2]
[421314572,1777410633181,-821.08485711,9.95e-05,2]
[421314573,1777410633190,-821.08485711,9.95e-05,2]
[421314574,1777410633200,-821.08485711,9.95e-05,2]
[421314575,1777410633209,-821.08485711,9.95e-05,2]
[421314576,1777410633218,-821.08485711,9.95e-05,2]
[421314577,1777410633228,-821.08485711,9.95e-05,2]
[421314578,1777410633237,-821.08485711,9.95e-05,2]
[421314579,1777410633247,-821.08485711,9.95e-05,2]
[421314580,1777410633256,-821.08485711,9.95e-05,2]
[421314581,1777410633265,-821.08485711,9.95e-05,2]
[421314582,1777410633274,-821.08485711,9.95e-05,2]
[421314583,1777410633284,-821.08485711,9.95e-05,2]
[421314584,1777410633294,-821.08485711,9.95e-05,2]
[421314585,1777410633304,-821.08485711,9.95e-05,2]
[421314586,1777410633313,-821.08485711,9.95e-05,2]
[421314587,1777410633323,-821.08485711,9.95e-05,2]
[421314588,1777410633332,-821.08485711,9.95e-05,2]
[421314589,1777410633342,-821.08485711,9.95e-05,2]
[421314590,1777410633352,-821.08485711,9.95e-05,2]
[421314591,1777410633361,-821.08485711,9.95e-05,2]
[421314592,1777410633372,-821.08485711,9.95e-05,2]
[421314593,1777410633381,-821.08485711,9.95e-05,2]
[421314594,1777410633391,-800.55773568,9.95e-05,2]
[421314595,1777410633400,-800.55773568,9.95e-05,2]
[421314596,1777410633410,-800.55773568,9.95e-05,2]
[421314597,1777410633419,-800.55773568,9.95e-05,2]
[421314598,1777410633428,-800.55773568,9.95e-05,2]
[421314599,1777410633438,-800.55773568,9.95e-05,2]
[421314600,1777410633447,-800.55773568,9.95e-05,2]
[421314601,1777410633457,-800.55773568,9.95e-05,2]
[421314602,1777410633467,-800.55773568,9.95e-05,2]
[421314603,1777410633476,-800.55773568,9.95e-05,2]
[421314604,1777410633486,-800.55773568,9.95e-05,2]
[421314605,1777410633495,-800.55773568,9.95e-05,2]
[421314606,1777410633505,-800.55773568,9.95e-05,2]
[421314607,1777410633514,-800.55773568,9.95e-05,2]
[421314608,1777410633524,-800.55773568,9.95e-05,2]
[421314609,1777410633537,-800.55773568,9.95e-05,2]
[421314610,1777410633547,-800.55773568,9.95e-05,2]
[421314611,1777410633558,-800.55773568,9.95e-05,2]
[421314612,1777410633568,-800.55773568,9.95e-05,2]
[421314613,1777410633578,-800.55773568,9.95e-05,2]
[421314614,1777410633587,-800.55773568,9.95e-05,2]
[421314615,1777410633597,-800.55773568,9.95e-05,2]
[421314616,1777410633607,-800.55773568,9.95e-05,2]
[421314617,1777410633616,-800.55773568,9.95e-05,2]
[421314618,1777410633626,-800.55773568,9.95e-05,2]
[421314619,1777410633636,-800.55773568,9.95e-05,2]
[421314620,1777410633647,-800.55773568,9.95e-05,2]
[421314621,1777410633656,-800.55773568,9.95e-05,2]
[421314622,1777410633666,-345.56277617,9.95e-05,2]
[421314623,1777410633675,-619.06537191,9.95e-05,2]
[421314624,1777410633685,-800.55773569,9.95e-05,2]
[421314625,1777410633695,-800.55773569,9.95e-05,2]
[421314626,1777410633705,-800.55773569,9.95e-05,2]
[421314627,1777410633714,-800.55773569,9.95e-05,2]
[421314628,1777410633723,-800.55773569,9.95e-05,2]
[421314629,1777410633733,-800.55773569,9.95e-05,2]
[421314630,1777410633743,-800.55773569,9.95e-05,2]
[421314631,1777410633752,-800.55773566,9.95e-05,2]
[421314632,1777410633762,-304517.10622467,9.951e-05,2]
[421314633,1777410634135,-16849.94385786,9.951e-05,2]
[421314634,1777410634147,-1668.97568377,9.951e-05,2]
[421314635,1777410634158,-1804.06328209,9.951e-05,2]
[421314636,1777410634170,-1060.14397087,9.951e-05,2]
[421314637,1777410634182,-4247.49169896,9.951e-05,2]
[421314638,1777410634193,-906.78256907,9.951e-05,2]
[421314639,1777410634205,-21918.62055404,9.951e-05,2]
[421314640,1777410634216,-28618.09368205,9.951e-05,2]
[421314643,1777410638220,-284.14433268,9.951e-05,2]
[421314648,1777410640567,-266.0,9.951e-05,2]
[421314649,1777410640582,-414.751446,9.951e-05,2]
[421314673,1777410646471,-450.0,9.951e-05,2]
[421314678,1777411625945,1174.0,0.000166,120]
[421314687,1777411832684,-280.0,8.219e-05,2]
[421314688,1777411832694,-966.48,8.422e-05,2]
[421314689,1777411832743,-233.52,8.422e-05,2]
[421314690,1777411832753,-521.71663314,8.423e-05,2]
[421314691,1777411832855,-678.28336686,8.423e-05,2]
[421314692,1777411832865,-300.0,8.423e-05,2]
[421314693,1777411832875,-300.0,8.423e-05,2]
[421314694,1777411832885,-222.07663314,8.423e-05,2]
[421314695,1777411832897,-77.92336686,8.423e-05,2]
[421314696,1777411832907,-300.0,8.423e-05,2]
[421314697,1777411832919,-5000.0,8.424e-05,2]
[421314698,1777411832930,-216.05758609,8.628e-05,2]
[421314699,1777411832941,-1663.60621407,8.711e-05,2]
[421314700,1777411832950,-150.0,9.04e-05,2]
[421314701,1777411832960,-5000.0,9.041e-05,2]
[421314702,1777411832970,-610.0,9.041e-05,2]
[421314703,1777411832980,-4369.12612016,9.041e-05,2]
[421314704,1777411832990,-1680.0,9.264e-05,2]
[421314705,1777411833000,-124777.052,9.476e-05,2]
[421314706,1777411833010,-150.0,9.576e-05,2]
[421314707,1777411833021,-150.0,9.576e-05,2]
[421314708,1777411833031,-150.0,9.576e-05,2]
[421314709,1777411833041,-150.0,9.576e-05,2]
[421314710,1777411833051,-212.56047491,9.576e-05,2]
[421314711,1777411833061,-150.0,9.576e-05,2]
[421314712,1777411833070,-150.0,9.576e-05,2]
[421314713,1777411833080,-150.0,9.576e-05,2]
[421314714,1777411833090,-150.0,9.576e-05,2]
[421314715,1777411833099,-150.0,9.576e-05,2]
[421314716,1777411833120,-150.69588499,9.576e-05,2]
[421314717,1777411833136,-500.0,9.577e-05,2]
[421314718,1777411833147,-500.0,9.577e-05,2]
[421314719,1777411833159,-150.0,9.577e-05,2]
[421314720,1777411833171,-500.0,9.577e-05,2]
[421314721,1777411833182,-150.0,9.577e-05,2]
[421314723,1777411833195,-350.0,9.577e-05,2]
[421314725,1777411833206,-150.0,9.577e-05,2]
[421314727,1777411833217,-150.0,9.577e-05,2]
[421314729,1777411833228,-150.0,9.577e-05,2]
[421314732,1777411833239,-150.0,9.577e-05,2]
[421314734,1777411833250,-250.0,9.577e-05,2]
[421314736,1777411833261,-91032.43187301,9.651e-05,2]
[421314738,1777411833277,-15402.65033403,9.651e-05,2]
[421314741,1777411833290,-139555.66119166,9.651e-05,2]
[421314750,1777411833368,-2631.90040632,9.651e-05,2]
[421314770,1777411833556,-18760.55878155,9.651e-05,2]
[421314802,1777411838223,-500.0,9.65e-05,2]
[421314803,1777411838232,-500.0,9.65e-05,2]
[421314804,1777411838242,-500.0,9.65e-05,2]
[421314805,1777411838252,-500.0,9.65e-05,2]
[421314806,1777411838261,-257.08759166,9.65e-05,2]
[421314807,1777411838273,-242.91240834,9.65e-05,2]
[421314808,1777411838283,-500.0,9.65e-05,2]
[421314809,1777411838292,-427.8439722,9.65e-05,2]
[421314810,1777411838439,-72.1560278,9.65e-05,2]
[421314811,1777411838449,-216.95508239,9.65e-05,2]
[421314812,1777411838461,-283.04491761,9.65e-05,2]
[421314813,1777411838471,-200.36008239,9.65e-05,2]
[421314814,1777411838493,-299.63991761,9.65e-05,2]
[421314815,1777411838503,-500.0,9.65e-05,2]
[421314816,1777411838513,-500.0,9.65e-05,2]
[421314817,1777411838522,-500.0,9.65e-05,2]
[421314818,1777411838532,-500.0,9.65e-05,2]
[421314819,1777411838542,-500.0,9.65e-05,2]
[421314820,1777411838552,-500.0,9.65e-05,2]
[421314821,1777411838564,-500.0,9.65e-05,2]
[421314822,1777411838574,-500.0,9.65e-05,2]
[421314823,1777411838584,-500.0,9.65e-05,2]
[421314824,1777411838592,-500.0,9.65e-05,2]
[421314825,1777411838602,-500.0,9.65e-05,2]
[421314827,1777411838611,-500.0,9.65e-05,2]
[421314829,1777411838621,-500.0,9.65e-05,2]
[421314830,1777411838630,-500.0,9.65e-05,2]
[421314831,1777411838639,-500.0,9.65e-05,2]
[421314832,1777411838648,-500.0,9.65e-05,2]
[421314833,1777411838658,-500.0,9.65e-05,2]
[421314834,1777411838668,-500.0,9.65e-05,2]
[421314835,1777411838678,-500.0,9.65e-05,2]
[421314836,1777411838688,-500.0,9.65e-05,2]
[421314837,1777411838698,-500.0,9.65e-05,2]
[421314838,1777411838708,-500.0,9.65e-05,2]
[421314840,1777411838718,-33303.71922406,9.651e-05,2]
[421314841,1777411838730,-1466.38808259,9.651e-05,2]
[421314844,1777411840259,-781.06101906,9.651e-05,2]
[421314845,1777411840272,-989.65348115,9.651e-05,2]
[421314846,1777411840313,-7721.94853633,9.651e-05,2]
[421314847,1777411840326,-9595.64527024,9.651e-05,2]
[421314848,1777411840335,-17970.2306,9.651e-05,2]
[421314849,1777411840345,-216.05758608,9.651e-05,2]
[421314850,1777411840355,-478.06,9.702e-05,2]
[421314851,1777411840364,-500.0,9.723e-05,2]
[421314852,1777411840374,-48863.60982071,9.741e-05,2]
[421314853,1777411840386,-292.77722249,9.741e-05,2]
[421314854,1777411840428,-888.44679796,9.741e-05,2]
[421314855,1777411840437,-500.0,9.75e-05,2]
[421314856,1777411840447,-445.576,9.751e-05,2]
[421314857,1777411840456,-552.97720204,9.751e-05,2]
[421314859,1777411843221,-743.33980056,9.751e-05,2]
[421314860,1777411843241,-191.7890974,9.751e-05,2]
[421314861,1777411843250,-250.0,9.85e-05,2]
[421314862,1777411843259,-210.18278177,9.933e-05,2]
[421314863,1777411843268,-150.0,9.944e-05,2]
[421314864,1777411843278,-151.0,9.948e-05,2]
[421314865,1777411843287,-286.65485468,9.95e-05,2]
[421314866,1777411843296,-243.14268542,9.95e-05,2]
[421314867,1777411843305,-412.96995991,9.95e-05,2]
[421314868,1777411843314,-447.94731938,9.95e-05,2]
[421314869,1777411843326,-102.99933611,9.95e-05,2]
[421314870,1777411843336,-927.13151209,9.951e-05,2]
[421314871,1777411843347,-1772.92596407,9.951e-05,2]
[421314872,1777411843358,-9080.52846166,9.951e-05,2]
[421314873,1777411843369,-153.74156018,9.951e-05,2]
[421314874,1777411843379,-408.744258,9.951e-05,2]